[Event "*** SCC Grand Prix: Titled Tuesday Blitz"]
[Site "Chess.com"]
[Date "2020.10.06"]
[Round "1"]
[White "sergoy"]
[Black "WPWPWP-2015"]
[Result "1-0"]
[WhiteElo "2867"]
[BlackElo "2444"]
[TimeControl "180+1"]
[EndTime "10:08:21 PDT"]
[Termination "sergoy won by resignation"]

1. d4 {[%clk 0:02:58.9]} 1... Nf6 {[%clk 0:02:58.4]} 2. c4 {[%clk 0:02:58.8]}
2... e6 {[%clk 0:02:53.7]} 3. Nf3 {[%clk 0:02:55.9]} 3... b6 {[%clk 0:02:50.9]}
4. g3 {[%clk 0:02:51.6]} 4... Bb4+ {[%clk 0:02:50.3]} 5. Bd2 {[%clk 0:02:45.7]}
5... Be7 {[%clk 0:02:47]} 6. Bg2 {[%clk 0:02:45]} 6... Ba6 {[%clk 0:02:46.1]} 7.
Qc2 {[%clk 0:02:44.1]} 7... Bb7 {[%clk 0:02:38.7]} 8. Nc3 {[%clk 0:02:41.7]}
8... c5 {[%clk 0:02:38.7]} 9. d5 {[%clk 0:02:40.8]} 9... exd5 {[%clk 0:02:31.8]}
10. Nh4 {[%clk 0:02:40.4]} 10... Nc6 {[%clk 0:02:25.8]} 11. Nf5 {[%clk
0:02:07.7]} 11... O-O {[%clk 0:02:22.4]} 12. Nxd5 {[%clk 0:01:59.1]} 12... Nxd5
{[%clk 0:02:16.8]} 13. cxd5 {[%clk 0:02:00]} 13... Nd4 {[%clk 0:01:58.1]} 14.
Nxd4 {[%clk 0:01:59.7]} 14... cxd4 {[%clk 0:01:58]} 15. O-O {[%clk 0:02:00.6]}
15... Bf6 {[%clk 0:01:47]} 16. Qd3 {[%clk 0:01:58.2]} 16... Re8 {[%clk
0:01:36.9]} 17. Bf3 {[%clk 0:01:49.9]} 17... d6 {[%clk 0:01:32.1]} 18. Rac1
{[%clk 0:01:44.8]} 18... a5 {[%clk 0:01:27.7]} 19. Bf4 {[%clk 0:01:42.6]} 19...
Ba6 {[%clk 0:01:20.1]} 20. Qd1 {[%clk 0:01:40]} 20... Qd7 {[%clk 0:01:16.1]} 21.
Rc6 {[%clk 0:01:38.3]} 21... g5 {[%clk 0:01:05.5]} 22. Rxd6 {[%clk 0:01:09.9]}
22... Qf5 {[%clk 0:01:04.8]} 23. Rxf6 {[%clk 0:01:02.6]} 23... Qxf6 {[%clk
0:01:04.2]} 24. Bd2 {[%clk 0:01:02.7]} 24... Qf5 {[%clk 0:00:41.8]} 25. Re1
{[%clk 0:00:50.9]} 25... g4 {[%clk 0:00:39.8]} 26. Bg2 {[%clk 0:00:51.3]} 26...
Qe5 {[%clk 0:00:33.2]} 27. e4 {[%clk 0:00:44.9]} 27... dxe3 {[%clk 0:00:30.8]}
28. Qxg4+ {[%clk 0:00:39.3]} 28... Qg7 {[%clk 0:00:29.2]} 29. Qxg7+ {[%clk
0:00:39.3]} 29... Kxg7 {[%clk 0:00:30]} 30. Bxe3 {[%clk 0:00:40.2]} 30... Rad8
{[%clk 0:00:20.6]} 31. Rd1 {[%clk 0:00:37.7]} 31... Be2 {[%clk 0:00:15.4]} 32.
Rd2 {[%clk 0:00:35.9]} 32... Bc4 {[%clk 0:00:15.4]} 33. b3 {[%clk 0:00:35.9]}
33... Ba6 {[%clk 0:00:14.9]} 34. h4 {[%clk 0:00:36]} 34... b5 {[%clk 0:00:11.8]}
35. Bb6 {[%clk 0:00:35.3]} 35... Rd6 {[%clk 0:00:08.8]} 36. Bxa5 {[%clk
0:00:35.5]} 36... Bb7 {[%clk 0:00:08.4]} 37. Bb4 {[%clk 0:00:35.1]} 37... Rd7
{[%clk 0:00:07.8]} 38. d6 {[%clk 0:00:34.2]} 38... Bxg2 {[%clk 0:00:06.9]} 39.
Kxg2 {[%clk 0:00:35.1]} 39... Ra8 {[%clk 0:00:04.9]} 40. a3 {[%clk 0:00:34.5]}
40... f6 {[%clk 0:00:04.7]} 41. Rd5 {[%clk 0:00:34.5]} 41... Rb8 {[%clk
0:00:03.5]} 42. Rc5 {[%clk 0:00:34.6]} 42... Kf7 {[%clk 0:00:03.7]} 43. Rc3
{[%clk 0:00:32]} 43... Ke6 {[%clk 0:00:04.3]} 44. h5 {[%clk 0:00:32.4]} 44... f5
{[%clk 0:00:03.5]} 45. Re3+ {[%clk 0:00:30.2]} 45... Kd5 {[%clk 0:00:03.8]} 46.
f4 {[%clk 0:00:29.7]} 46... Rc8 {[%clk 0:00:03.1]} 47. Re5+ {[%clk 0:00:29.7]}
47... Kd4 {[%clk 0:00:02.7]} 48. Rxf5 {[%clk 0:00:30]} 48... Rc2+ {[%clk
0:00:02.3]} 49. Kh3 {[%clk 0:00:30.3]} 49... Rb2 {[%clk 0:00:02.5]} 50. Rxb5
{[%clk 0:00:27.3]} 50... Kd3 {[%clk 0:00:02.1]} 51. Re5 {[%clk 0:00:26.4]} 51...
Rxb3 {[%clk 0:00:01.9]} 52. Re7 {[%clk 0:00:26.7]} 52... Rd8 {[%clk 0:00:02.2]}
53. d7 {[%clk 0:00:27.2]} 53... Kc4 {[%clk 0:00:01.3]} 54. Ba5 {[%clk
0:00:26.7]} 54... Rg8 {[%clk 0:00:01.9]} 55. Be1 {[%clk 0:00:24.1]} 55... Rd3
{[%clk 0:00:01.8]} 56. Re8 {[%clk 0:00:22.4]} 56... Rgxg3+ {[%clk 0:00:01.9]}
57. Bxg3 {[%clk 0:00:21.9]} 57... Rxd7 {[%clk 0:00:02.8]} 58. f5 {[%clk
0:00:20.7]} 58... Rf7 {[%clk 0:00:02.6]} 59. Kg4 {[%clk 0:00:20.9]} 59... Rg7+
{[%clk 0:00:02.3]} 60. Kf4 {[%clk 0:00:21.2]} 60... Ra7 {[%clk 0:00:02.4]} 61.
f6 {[%clk 0:00:21.2]} 61... Rxa3 {[%clk 0:00:02.5]} 62. f7 {[%clk 0:00:20.5]}
62... Kd5 {[%clk 0:00:01.9]} 63. f8=Q {[%clk 0:00:20.1]} 63... Ra4+ {[%clk
0:00:02.4]} 64. Kf5 {[%clk 0:00:19.1]} 1-0

[Event "*** SCC Grand Prix: Titled Tuesday Blitz"]
[Site "Chess.com"]
[Date "2020.10.06"]
[Round "1"]
[White "BocharovD"]
[Black "Rital44"]
[Result "1-0"]
[WhiteElo "2811"]
[BlackElo "2420"]
[TimeControl "180+1"]
[EndTime "10:08:22 PDT"]
[Termination "BocharovD won by resignation"]

1. d4 {[%clk 0:03:00.9]} 1... Nf6 {[%clk 0:02:59.3]} 2. c4 {[%clk 0:03:00.2]}
2... g6 {[%clk 0:02:59.3]} 3. Nf3 {[%clk 0:02:59.6]} 3... Bg7 {[%clk 0:02:59.6]}
4. g3 {[%clk 0:03:00.1]} 4... O-O {[%clk 0:02:59.7]} 5. Bg2 {[%clk 0:03:00.3]}
5... d6 {[%clk 0:03:00.2]} 6. Nc3 {[%clk 0:02:57.6]} 6... Nc6 {[%clk 0:03:00.3]}
7. O-O {[%clk 0:02:56.8]} 7... e5 {[%clk 0:03:00.4]} 8. dxe5 {[%clk 0:02:56]}
8... Nxe5 {[%clk 0:02:59.7]} 9. b3 {[%clk 0:02:55.4]} 9... Nxf3+ {[%clk
0:02:53]} 10. Bxf3 {[%clk 0:02:54.9]} 10... Ne4 {[%clk 0:02:44.1]} 11. Nxe4
{[%clk 0:02:54.1]} 11... Bxa1 {[%clk 0:02:43]} 12. Bg5 {[%clk 0:02:52.8]} 12...
f6 {[%clk 0:02:43]} 13. Bh6 {[%clk 0:02:52.2]} 13... Be5 {[%clk 0:02:42.1]} 14.
Bxf8 {[%clk 0:02:50.2]} 14... Qxf8 {[%clk 0:02:43]} 15. Bg2 {[%clk 0:02:46.7]}
15... f5 {[%clk 0:02:26.3]} 16. Ng5 {[%clk 0:02:12]} 16... Qf6 {[%clk
0:02:24.5]} 17. Nf3 {[%clk 0:02:08.1]} 17... c6 {[%clk 0:02:22.9]} 18. Nxe5
{[%clk 0:02:07.8]} 18... dxe5 {[%clk 0:02:23.8]} 19. Qd2 {[%clk 0:02:06.8]}
19... Be6 {[%clk 0:02:20.9]} 20. Rd1 {[%clk 0:02:06.5]} 20... Qe7 {[%clk
0:02:01.4]} 21. e4 {[%clk 0:02:02.7]} 21... a5 {[%clk 0:01:58.7]} 22. exf5
{[%clk 0:01:56.4]} 22... Bxf5 {[%clk 0:01:58.6]} 23. h4 {[%clk 0:01:55.3]} 23...
a4 {[%clk 0:01:58]} 24. b4 {[%clk 0:01:54.8]} 24... e4 {[%clk 0:01:53.6]} 25. a3
{[%clk 0:01:51.4]} 25... Re8 {[%clk 0:01:52]} 26. Qe3 {[%clk 0:01:50.3]} 26...
Qe5 {[%clk 0:01:34.1]} 27. c5 {[%clk 0:01:36.7]} 27... Be6 {[%clk 0:01:14.2]}
28. Qxe4 {[%clk 0:01:26.8]} 28... Qxe4 {[%clk 0:01:04]} 29. Bxe4 {[%clk
0:01:26.3]} 29... Bb3 {[%clk 0:01:04.1]} 30. Rd4 {[%clk 0:01:26.3]} 30... Kf7
{[%clk 0:01:02.9]} 31. f3 {[%clk 0:01:26.2]} 31... Kf6 {[%clk 0:01:02]} 32. Rd7
{[%clk 0:01:22.1]} 32... Be6 {[%clk 0:00:49.1]} 33. Rxb7 {[%clk 0:01:18.1]}
33... Rd8 {[%clk 0:00:48.6]} 34. Bxc6 {[%clk 0:01:10.9]} 34... Rd1+ {[%clk
0:00:46.9]} 35. Kf2 {[%clk 0:01:10]} 35... Rd2+ {[%clk 0:00:47.8]} 36. Ke1
{[%clk 0:01:06.8]} 36... Ra2 {[%clk 0:00:46.4]} 37. Bxa4 {[%clk 0:01:06]} 37...
Rxa3 {[%clk 0:00:46.8]} 38. Bd7 {[%clk 0:01:05.4]} 38... Bc4 {[%clk 0:00:32.7]}
39. Bc6 {[%clk 0:00:53.3]} 39... Ke5 {[%clk 0:00:28.2]} 40. Rd7 {[%clk
0:00:47.8]} 40... Rb3 {[%clk 0:00:20.9]} 41. b5 {[%clk 0:00:47.1]} 41... Bxb5
{[%clk 0:00:20.7]} 42. Bxb5 {[%clk 0:00:47]} 42... Rxb5 {[%clk 0:00:21.6]} 43.
Rxh7 {[%clk 0:00:45.9]} 43... Rxc5 {[%clk 0:00:21.1]} 44. h5 {[%clk 0:00:45.7]}
44... Rc1+ {[%clk 0:00:17.7]} 45. Kd2 {[%clk 0:00:44.9]} 45... Rg1 {[%clk
0:00:17.8]} 46. g4 {[%clk 0:00:43.1]} 46... gxh5 {[%clk 0:00:17.6]} 47. Rxh5+
{[%clk 0:00:42.8]} 47... Kd4 {[%clk 0:00:17.6]} 48. Rh2 {[%clk 0:00:31.7]} 48...
Ra1 {[%clk 0:00:14.6]} 49. Re2 {[%clk 0:00:31.7]} 49... Rf1 {[%clk 0:00:12.7]}
50. Re4+ {[%clk 0:00:31.2]} 50... Kd5 {[%clk 0:00:12.7]} 51. Ke3 {[%clk
0:00:32.1]} 51... Ra1 {[%clk 0:00:10.4]} 52. Kf4 {[%clk 0:00:31.1]} 52... Ra8
{[%clk 0:00:10.3]} 53. Re5+ {[%clk 0:00:31.2]} 53... Kd6 {[%clk 0:00:10.6]} 54.
g5 {[%clk 0:00:31.2]} 54... Rf8+ {[%clk 0:00:07.4]} 55. Rf5 {[%clk 0:00:31.2]}
55... Ra8 {[%clk 0:00:07.4]} 56. Kg4 {[%clk 0:00:31.3]} 56... Ke6 {[%clk
0:00:07.3]} 57. f4 {[%clk 0:00:30.6]} 57... Ra1 {[%clk 0:00:07.2]} 58. Rf6+
{[%clk 0:00:30.8]} 58... Ke7 {[%clk 0:00:08.1]} 59. Kf5 {[%clk 0:00:31.1]} 59...
Rf1 {[%clk 0:00:06.1]} 60. Kg6 {[%clk 0:00:30.9]} 60... Ra1 {[%clk 0:00:03.9]}
61. f5 {[%clk 0:00:30.3]} 61... Ra8 {[%clk 0:00:04.8]} 62. Rf7+ {[%clk
0:00:30.1]} 62... Kd6 {[%clk 0:00:04.9]} 63. Kg7 {[%clk 0:00:30.1]} 63... Ke5
{[%clk 0:00:05.8]} 64. g6 {[%clk 0:00:29.3]} 64... Ra1 {[%clk 0:00:04.3]} 65. f6
{[%clk 0:00:29.2]} 65... Kf5 {[%clk 0:00:04.4]} 66. Rb7 {[%clk 0:00:28]} 66...
Rg1 {[%clk 0:00:04.2]} 67. Rb5+ {[%clk 0:00:27.6]} 67... Ke6 {[%clk 0:00:05.1]}
68. f7 {[%clk 0:00:27.9]} 1-0

[Event "*** SCC Grand Prix: Titled Tuesday Blitz"]
[Site "Chess.com"]
[Date "2020.10.06"]
[Round "1"]
[White "jerry_77"]
[Black "Andreikka"]
[Result "0-1"]
[WhiteElo "2451"]
[BlackElo "2891"]
[TimeControl "180+1"]
[EndTime "10:08:25 PDT"]
[Termination "Andreikka won by resignation"]

1. e4 {[%clk 0:02:58.2]} 1... e5 {[%clk 0:03:00.2]} 2. Nf3 {[%clk 0:02:56]} 2...
Nc6 {[%clk 0:03:00.2]} 3. Bb5 {[%clk 0:02:56.6]} 3... a6 {[%clk 0:03:00.3]} 4.
Ba4 {[%clk 0:02:54.4]} 4... Nf6 {[%clk 0:03:00]} 5. O-O {[%clk 0:02:54.4]} 5...
Be7 {[%clk 0:02:59.8]} 6. Re1 {[%clk 0:02:53.2]} 6... b5 {[%clk 0:02:59.9]} 7.
Bb3 {[%clk 0:02:53.1]} 7... d6 {[%clk 0:02:59.3]} 8. c3 {[%clk 0:02:52.8]} 8...
O-O {[%clk 0:02:57.6]} 9. d4 {[%clk 0:02:53]} 9... Bg4 {[%clk 0:02:56.9]} 10.
Be3 {[%clk 0:02:52.6]} 10... Bh5 {[%clk 0:02:54.9]} 11. Nbd2 {[%clk 0:02:51.7]}
11... Na5 {[%clk 0:02:49.1]} 12. Bc2 {[%clk 0:02:51.6]} 12... c5 {[%clk
0:02:46.7]} 13. dxc5 {[%clk 0:02:33.7]} 13... dxc5 {[%clk 0:02:45.6]} 14. Nb3
{[%clk 0:02:33.8]} 14... Qc7 {[%clk 0:02:30.2]} 15. h3 {[%clk 0:02:24.9]} 15...
Nc4 {[%clk 0:02:27.5]} 16. Bc1 {[%clk 0:02:23.9]} 16... Rfd8 {[%clk 0:02:21.7]}
17. Qe2 {[%clk 0:02:24]} 17... h6 {[%clk 0:02:16.2]} 18. Bd3 {[%clk 0:02:04.2]}
18... Nb6 {[%clk 0:02:10.9]} 19. Nbd2 {[%clk 0:02:02.5]} 19... c4 {[%clk
0:02:01]} 20. Bc2 {[%clk 0:02:02.2]} 20... Nbd7 {[%clk 0:02:01.5]} 21. Nf1
{[%clk 0:02:01.8]} 21... Nc5 {[%clk 0:02:01.9]} 22. Ng3 {[%clk 0:02:01.5]} 22...
Bg6 {[%clk 0:02:00.9]} 23. Nh4 {[%clk 0:01:49.1]} 23... Nd3 {[%clk 0:02:00.8]}
24. Rd1 {[%clk 0:01:37.1]} 24... Nxc1 {[%clk 0:01:56.1]} 25. Raxc1 {[%clk
0:01:38]} 25... Bh7 {[%clk 0:01:56.2]} 26. Nhf5 {[%clk 0:01:37.6]} 26... Bc5
{[%clk 0:01:54.9]} 27. Rxd8+ {[%clk 0:01:31.3]} 27... Rxd8 {[%clk 0:01:53.4]}
28. Rd1 {[%clk 0:01:31.6]} 28... Rxd1+ {[%clk 0:01:53]} 29. Qxd1 {[%clk
0:01:32.5]} 29... Bg6 {[%clk 0:01:50.2]} 30. Qd2 {[%clk 0:01:27.4]} 30... Bf8
{[%clk 0:01:46.4]} 31. Kh2 {[%clk 0:01:13.3]} 31... Nd7 {[%clk 0:01:46]} 32. Nh4
{[%clk 0:01:10.3]} 32... Bh7 {[%clk 0:01:45.8]} 33. a4 {[%clk 0:01:05.8]} 33...
Nc5 {[%clk 0:01:45.5]} 34. axb5 {[%clk 0:01:04.8]} 34... axb5 {[%clk 0:01:46.4]}
35. Qd5 {[%clk 0:01:02]} 35... g6 {[%clk 0:01:45.9]} 36. Nf3 {[%clk 0:00:53.2]}
36... Bd6 {[%clk 0:01:42.6]} 37. h4 {[%clk 0:00:47.9]} 37... Kg7 {[%clk
0:01:42.6]} 38. Kh1 {[%clk 0:00:45.7]} 38... h5 {[%clk 0:01:40.8]} 39. Ng5
{[%clk 0:00:44.6]} 39... Bg8 {[%clk 0:01:41.3]} 40. Qd2 {[%clk 0:00:38.1]} 40...
f6 {[%clk 0:01:40.2]} 41. Nf3 {[%clk 0:00:38.4]} 41... Bf7 {[%clk 0:01:35.7]}
42. Nf1 {[%clk 0:00:38.1]} 42... Bf8 {[%clk 0:01:32.7]} 43. Ne3 {[%clk
0:00:38.2]} 43... Qa5 {[%clk 0:01:31.4]} 44. g4 {[%clk 0:00:31.5]} 44... Qa1+
{[%clk 0:01:19.1]} 45. Kg2 {[%clk 0:00:30.7]} 45... Qxb2 {[%clk 0:01:19.2]} 46.
gxh5 {[%clk 0:00:31]} 46... gxh5 {[%clk 0:01:16.4]} 47. Nf5+ {[%clk 0:00:31.2]}
47... Kg8 {[%clk 0:01:16.7]} 48. Ne3 {[%clk 0:00:14.9]} 48... Ne6 {[%clk
0:01:02.6]} 49. Nd5 {[%clk 0:00:12.7]} 49... Kg7 {[%clk 0:01:03.2]} 50. Qd1
{[%clk 0:00:09.2]} 50... Bc5 {[%clk 0:00:59.2]} 51. Ne1 {[%clk 0:00:08]} 51...
Bg6 {[%clk 0:00:56]} 52. Qf3 {[%clk 0:00:08.2]} 52... Nf4+ {[%clk 0:00:50.3]}
53. Nxf4 {[%clk 0:00:07.4]} 53... exf4 {[%clk 0:00:51.2]} 54. Qxf4 {[%clk
0:00:08.3]} 54... Bf8 {[%clk 0:00:42.3]} 55. e5 {[%clk 0:00:07.7]} 55... Bxc2
{[%clk 0:00:23.1]} 56. Qxf6+ {[%clk 0:00:04.9]} 56... Kg8 {[%clk 0:00:23]} 57.
Qe6+ {[%clk 0:00:05.2]} 57... Kh8 {[%clk 0:00:20.6]} 58. Qf7 {[%clk 0:00:05.6]}
58... Be4+ {[%clk 0:00:18.7]} 59. Kg3 {[%clk 0:00:05]} 59... Qxc3+ {[%clk
0:00:17.3]} 60. Kf4 {[%clk 0:00:05.5]} 60... Bh6+ {[%clk 0:00:14.2]} 61. Kxe4
{[%clk 0:00:05.4]} 61... Qxe1+ {[%clk 0:00:14.8]} 62. Kd5 {[%clk 0:00:05.9]}
62... Qd2+ {[%clk 0:00:12.9]} 63. Kc6 {[%clk 0:00:06.4]} 63... Qf4 {[%clk
0:00:11.5]} 64. e6 {[%clk 0:00:05.7]} 64... Qxf7 {[%clk 0:00:11.4]} 65. exf7
{[%clk 0:00:06]} 65... c3 {[%clk 0:00:12.1]} 0-1

[Event "*** SCC Grand Prix: Titled Tuesday Blitz"]
[Site "Chess.com"]
[Date "2020.10.06"]
[Round "1"]
[White "ChessAurochs"]
[Black "ChronicUnhappiness"]
[Result "0-1"]
[WhiteElo "2561"]
[BlackElo "2283"]
[TimeControl "180+1"]
[EndTime "10:08:28 PDT"]
[Termination "ChronicUnhappiness won by resignation"]

1. e4 {[%clk 0:03:00.7]} 1... c5 {[%clk 0:02:59.7]} 2. Nf3 {[%clk 0:03:00.7]}
2... Nc6 {[%clk 0:02:59.8]} 3. Bb5 {[%clk 0:03:00.5]} 3... g6 {[%clk 0:02:59.3]}
4. O-O {[%clk 0:03:00.3]} 4... Bg7 {[%clk 0:02:59.2]} 5. Nc3 {[%clk 0:03:00.8]}
5... Nf6 {[%clk 0:02:51.4]} 6. e5 {[%clk 0:03:00.3]} 6... Ng4 {[%clk 0:02:51]}
7. Bxc6 {[%clk 0:03:00.4]} 7... dxc6 {[%clk 0:02:49.8]} 8. Re1 {[%clk
0:03:01.3]} 8... Nh6 {[%clk 0:02:35.8]} 9. d3 {[%clk 0:02:57.3]} 9... O-O {[%clk
0:02:29.9]} 10. Ne4 {[%clk 0:02:49.5]} 10... b6 {[%clk 0:02:29.6]} 11. c3 {[%clk
0:02:49.3]} 11... Ba6 {[%clk 0:02:18.7]} 12. d4 {[%clk 0:02:47.1]} 12... cxd4
{[%clk 0:02:16.1]} 13. cxd4 {[%clk 0:02:48]} 13... Nf5 {[%clk 0:02:14.5]} 14.
Bf4 {[%clk 0:02:33.9]} 14... Qd5 {[%clk 0:02:08]} 15. g4 {[%clk 0:02:20.9]}
15... Nh6 {[%clk 0:02:06.2]} 16. h3 {[%clk 0:02:21]} 16... f5 {[%clk 0:01:52]}
17. exf6 {[%clk 0:02:20.5]} 17... exf6 {[%clk 0:01:50]} 18. Nc3 {[%clk 0:02:18]}
18... Qd7 {[%clk 0:01:42.8]} 19. Qb3+ {[%clk 0:02:17.1]} 19... Kh8 {[%clk
0:01:20.5]} 20. Re6 {[%clk 0:01:57.7]} 20... Rae8 {[%clk 0:00:49.3]} 21. Rae1
{[%clk 0:01:56.1]} 21... Bc8 {[%clk 0:00:46.9]} 22. Rd6 {[%clk 0:01:43.6]} 22...
Qf7 {[%clk 0:00:40.9]} 23. Bxh6 {[%clk 0:00:57.9]} 23... Rxe1+ {[%clk
0:00:30.6]} 24. Nxe1 {[%clk 0:00:58.8]} 24... Bxh6 {[%clk 0:00:29]} 25. Qxf7
{[%clk 0:00:51.5]} 25... Rxf7 {[%clk 0:00:29.9]} 26. Rxc6 {[%clk 0:00:49.4]}
26... Bb7 {[%clk 0:00:29.4]} 27. Re6 {[%clk 0:00:49.3]} 27... Kg7 {[%clk
0:00:24.5]} 28. Nf3 {[%clk 0:00:42.8]} 28... Rd7 {[%clk 0:00:23.1]} 29. d5
{[%clk 0:00:40.9]} 29... Kf7 {[%clk 0:00:21.5]} 30. Ne5+ {[%clk 0:00:40.2]}
30... fxe5 {[%clk 0:00:20.4]} 31. Rxe5 {[%clk 0:00:39.8]} 31... Bg7 {[%clk
0:00:20]} 32. Re3 {[%clk 0:00:39]} 32... Bxd5 {[%clk 0:00:19.4]} 33. Rd3 {[%clk
0:00:37.3]} 33... Be6 {[%clk 0:00:19]} 34. Rf3+ {[%clk 0:00:37.1]} 34... Ke7
{[%clk 0:00:17.9]} 35. Re3 {[%clk 0:00:37.2]} 35... Bxc3 {[%clk 0:00:15.9]} 36.
Rxc3 {[%clk 0:00:35.8]} 36... Bd5 {[%clk 0:00:15.2]} 37. f4 {[%clk 0:00:35.4]}
37... Kd6 {[%clk 0:00:16.1]} 38. a3 {[%clk 0:00:35.3]} 38... Rc7 {[%clk
0:00:16.3]} 39. Rd3 {[%clk 0:00:34.9]} 39... Rc2 {[%clk 0:00:16.1]} 40. b4
{[%clk 0:00:34.4]} 40... b5 {[%clk 0:00:15.6]} 41. Rd4 {[%clk 0:00:33.1]} 41...
Rc3 {[%clk 0:00:15]} 42. f5 {[%clk 0:00:29.3]} 42... gxf5 {[%clk 0:00:14.7]} 43.
gxf5 {[%clk 0:00:30.2]} 43... Rf3 {[%clk 0:00:14.9]} 44. Rh4 {[%clk 0:00:24.2]}
44... Rxf5 {[%clk 0:00:14.8]} 45. Rxh7 {[%clk 0:00:24.2]} 45... Rf3 {[%clk
0:00:14.6]} 46. Rxa7 {[%clk 0:00:23.8]} 46... Rxh3 {[%clk 0:00:14.7]} 47. Kf2
{[%clk 0:00:23.6]} 47... Rb3 {[%clk 0:00:14.1]} 48. Ke2 {[%clk 0:00:23.5]} 48...
Bc4+ {[%clk 0:00:14.4]} 49. Kd2 {[%clk 0:00:24]} 49... Kd5 {[%clk 0:00:14.6]}
50. Kc2 {[%clk 0:00:24.4]} 50... Kd4 {[%clk 0:00:14.4]} 51. Rd7+ {[%clk
0:00:23.9]} 51... Ke5 {[%clk 0:00:14]} 52. Re7+ {[%clk 0:00:23.6]} 52... Kd6
{[%clk 0:00:13.9]} 53. Ra7 {[%clk 0:00:24.2]} 53... Rh3 {[%clk 0:00:13.3]} 54.
Ra6+ {[%clk 0:00:24.4]} 54... Kd5 {[%clk 0:00:13.6]} 55. Ra8 {[%clk 0:00:23.4]}
55... Kd4 {[%clk 0:00:13.8]} 56. Rd8+ {[%clk 0:00:23.1]} 56... Bd5 {[%clk
0:00:14]} 57. Kb2 {[%clk 0:00:18]} 57... Rh2+ {[%clk 0:00:13.3]} 58. Kc1 {[%clk
0:00:17.9]} 58... Kc4 {[%clk 0:00:11.7]} 59. Kd1 {[%clk 0:00:12.8]} 59... Be4
{[%clk 0:00:10.6]} 60. Rc8+ {[%clk 0:00:09]} 60... Kb3 {[%clk 0:00:10.3]} 61.
Rc5 {[%clk 0:00:08.4]} 61... Bd3 {[%clk 0:00:08.9]} 62. Kc1 {[%clk 0:00:04.7]}
62... Bc4 {[%clk 0:00:07.3]} 63. Kd1 {[%clk 0:00:03.1]} 63... Kxa3 {[%clk
0:00:07.5]} 0-1

[Event "*** SCC Grand Prix: Titled Tuesday Blitz"]
[Site "Chess.com"]
[Date "2020.10.06"]
[Round "1"]
[White "KonstantinB_1983"]
[Black "gixfantastix"]
[Result "1-0"]
[WhiteElo "2503"]
[BlackElo "2078"]
[TimeControl "180+1"]
[EndTime "10:08:32 PDT"]
[Termination "KonstantinB_1983 won on time"]

1. d4 {[%clk 0:03:00.8]} 1... Nf6 {[%clk 0:02:55.1]} 2. c4 {[%clk 0:02:59.6]}
2... g6 {[%clk 0:02:52.1]} 3. Nc3 {[%clk 0:02:58.5]} 3... d5 {[%clk 0:02:51.8]}
4. Bg5 {[%clk 0:02:56.4]} 4... Ne4 {[%clk 0:02:49.2]} 5. Bh4 {[%clk 0:02:55.2]}
5... Nxc3 {[%clk 0:02:01.7]} 6. bxc3 {[%clk 0:02:53.8]} 6... Bg7 {[%clk
0:01:56]} 7. e3 {[%clk 0:02:53.3]} 7... O-O {[%clk 0:01:55.5]} 8. cxd5 {[%clk
0:02:51.3]} 8... Qxd5 {[%clk 0:01:56.4]} 9. Bxe7 {[%clk 0:02:49.6]} 9... Re8
{[%clk 0:01:55.7]} 10. Ba3 {[%clk 0:02:40.2]} 10... Nd7 {[%clk 0:01:32.3]} 11.
Nf3 {[%clk 0:02:37.9]} 11... c5 {[%clk 0:01:31.9]} 12. Be2 {[%clk 0:02:17.2]}
12... cxd4 {[%clk 0:01:30.7]} 13. O-O {[%clk 0:02:15.8]} 13... d3 {[%clk
0:01:22.9]} 14. Qxd3 {[%clk 0:02:13.9]} 14... Qxd3 {[%clk 0:01:21.7]} 15. Bxd3
{[%clk 0:02:13.8]} 15... Bxc3 {[%clk 0:01:22.3]} 16. Rac1 {[%clk 0:02:14]} 16...
Bf6 {[%clk 0:01:19.9]} 17. Rc7 {[%clk 0:01:56.4]} 17... a6 {[%clk 0:01:15.8]}
18. Rfc1 {[%clk 0:01:50.9]} 18... Ne5 {[%clk 0:01:12.7]} 19. Be4 {[%clk
0:01:09.9]} 19... Nxf3+ {[%clk 0:01:12]} 20. Bxf3 {[%clk 0:01:08.5]} 20... Be5
{[%clk 0:01:12.4]} 21. Bxb7 {[%clk 0:00:59]} 21... Bxc7 {[%clk 0:00:34.9]} 22.
Bxa8 {[%clk 0:00:57.7]} 22... Be5 {[%clk 0:00:32.9]} 23. Bc6 {[%clk 0:00:54.6]}
23... Rd8 {[%clk 0:00:32.1]} 24. f4 {[%clk 0:00:51.1]} 24... Bf6 {[%clk
0:00:30.5]} 25. Bb4 {[%clk 0:00:44.1]} 25... Be6 {[%clk 0:00:26.8]} 26. a4
{[%clk 0:00:42.5]} 26... Rd3 {[%clk 0:00:26.3]} 27. Kf2 {[%clk 0:00:39]} 27...
Rb3 {[%clk 0:00:23.2]} 28. Bd6 {[%clk 0:00:33.9]} 28... Rb2+ {[%clk 0:00:22.6]}
29. Kf3 {[%clk 0:00:32.9]} 29... h5 {[%clk 0:00:20.4]} 30. h3 {[%clk 0:00:31.8]}
30... Kg7 {[%clk 0:00:20.3]} 31. Be4 {[%clk 0:00:26.3]} 31... Bh4 {[%clk
0:00:18.9]} 32. g3 {[%clk 0:00:24.2]} 32... Bf6 {[%clk 0:00:18.9]} 33. g4 {[%clk
0:00:23.1]} 33... Ra2 {[%clk 0:00:17.2]} 34. Bc6 {[%clk 0:00:19.1]} 34... Ra3
{[%clk 0:00:15.8]} 35. g5 {[%clk 0:00:17.7]} 35... Bb2 {[%clk 0:00:13.9]} 36.
Bxa3 {[%clk 0:00:16.8]} 36... Bxa3 {[%clk 0:00:14.8]} 37. Rc3 {[%clk 0:00:16.4]}
37... Bb4 {[%clk 0:00:14.4]} 38. Rd3 {[%clk 0:00:16.3]} 38... Bc4 {[%clk
0:00:13.3]} 39. Rd4 {[%clk 0:00:15.8]} 39... Bb5 {[%clk 0:00:12.3]} 40. axb5
{[%clk 0:00:14.5]} 40... a5 {[%clk 0:00:12.6]} 41. Rc4 {[%clk 0:00:13.3]} 41...
h4 {[%clk 0:00:12]} 42. b6 {[%clk 0:00:12.9]} 42... Bd6 {[%clk 0:00:11.1]} 43.
b7 {[%clk 0:00:13]} 43... a4 {[%clk 0:00:11.4]} 44. Rxa4 {[%clk 0:00:12.1]}
44... Bc7 {[%clk 0:00:11.1]} 45. Ra8 {[%clk 0:00:11.9]} 45... f6 {[%clk
0:00:09.9]} 46. b8=Q {[%clk 0:00:10.8]} 46... Bxb8 {[%clk 0:00:09.7]} 47. Rxb8
{[%clk 0:00:10.7]} 47... fxg5 {[%clk 0:00:10.6]} 48. fxg5 {[%clk 0:00:09.8]}
48... Kf7 {[%clk 0:00:11.5]} 49. Kg4 {[%clk 0:00:09.5]} 49... Ke6 {[%clk
0:00:12.4]} 50. Be4 {[%clk 0:00:09.5]} 50... Ke5 {[%clk 0:00:12.7]} 51. Bxg6
{[%clk 0:00:09.6]} 51... Ke6 {[%clk 0:00:12.1]} 52. Kxh4 {[%clk 0:00:09.8]}
52... Ke5 {[%clk 0:00:12.2]} 53. Kh5 {[%clk 0:00:09.9]} 53... Kd6 {[%clk
0:00:13.1]} 54. Kh6 {[%clk 0:00:10.1]} 54... Kc7 {[%clk 0:00:14]} 55. Re8 {[%clk
0:00:10.2]} 55... Kd7 {[%clk 0:00:13.5]} 56. h4 {[%clk 0:00:11.1]} 56... Kd6
{[%clk 0:00:14]} 57. h5 {[%clk 0:00:11.1]} 57... Kd5 {[%clk 0:00:14.9]} 58. Kg7
{[%clk 0:00:11.3]} 58... Kd6 {[%clk 0:00:15.8]} 59. h6 {[%clk 0:00:11.6]} 59...
Kd7 {[%clk 0:00:16.7]} 60. h7 {[%clk 0:00:12]} 1-0